[Event "White Rook U14 Final 2019"]
[Site "Sochi"]
[Date "2019.06.06"]
[Round "3.25"]
[White "Novoselov, Danil"]
[Black "Hrbek, Stepan"]
[Result "1/2-1/2"]
[ECO "C00"]
[WhiteElo "1723"]
[BlackElo "2013"]
[Annotator "NA RC"]
[PlyCount "143"]
[EventDate "2019.06.02"]
[EventCountry "RUS"]
[SourceTitle "playchess.com"]
[Source "ChessBase"]
[SourceQuality "1"]
[TimeControl "5400+30"]

1. e4 {[%emt 0:00:00]} e6 {[%emt 0:00:00]} 2. d3 {[%emt 0:00:00]} d5 {[%emt 0:00:00]} 3. Nd2 {[%emt 0:00:00]} Nf6 {[%emt 0:00:00]} 4. Ngf3 {[%emt 0:00:00]} c5 {[%emt 0:00:00]} 5. g3 {[%emt 0:00:00]} Nc6 {[%emt 0:00:00]} 6. Bg2 {[%emt 0:00:00]} Be7 {[%emt 0:00:00]} 7. O-O {[%emt 0:00:00]} O-O {[%emt 0:00:20]} 8. Re1 {[%emt 0:00:00]} b5 {[%emt 0:00:00]} 9. e5 {[%emt 0:00:23]} Ne8 {[%emt 0:00:00]} 10. c3 {[%emt 0:01:02]} Bd7 {[%emt 0:00:23]} 11. d4 {[%emt 0:02:21]} c4 {[%emt 0:04:09]} 12. h4 {[%emt 0:00:38]} Nc7 {[%emt 0:00:54]} 13. Nf1 {[%emt 0:01:14]} Re8 {[%emt 0:08:42]} 14. N1h2 {[%emt 0:03:38]} a5 {[%emt 0:02:26]} 15. Ng5 {[%emt 0:04:23]} h6 {[%emt 0:02:06]} 16. Nh3 {[%emt 0:00:00]} b4 {[%emt 0:02:00]} 17. Qh5 {[%emt 0:03:40]} Bf8 {[%emt 0:13:53]} 18. Ng4 {[%emt 0:07:08]} Ne7 {[%emt 0:07:46]} 19. Bxh6 {[%emt 0:02:19]} gxh6 {[%emt 0:00:30]} 20. Nf6+ {[%emt 0:20:27]} Kg7 {[%emt 0:05:11]} 21. Qg4+ {[%emt 0:02:35]} Ng6 {[%emt 0:10:04]} 22. Nxe8+ {[%emt 0:17:47]} Qxe8 {[%emt 0:02:12]} 23. h5 {[%emt 0:03:09]} Kh7 {[%emt 0:07:00]} 24. hxg6+ {[%emt 0:00:15]} fxg6 {[%emt 0:00:09]} 25. Re3 {[%emt 0:00:57]} Bg7 {[%emt 0:00:14]} 26. Nf4 {[%emt 0:01:33]} Rb8 {[%emt 0:00:42]} 27. Bf3 {[%emt 0:00:37]} bxc3 {[%emt 0:02:06]} 28. bxc3 {[%emt 0:05:41]} Ba4 {[%emt 0:04:32]} 29. Bd1 {[%emt 0:00:01]} Bxd1 {[%emt 0:01:17]} 30. Rxd1 {[%emt 0:00:21]} h5 {[%emt 0:00:15]} 31. Qf3 {[%emt 0:01:49]} Bh6 {[%emt 0:08:19]} 32. Re2 {[%emt 0:07:01]} Qa4 {[%emt 0:05:09]} 33. Rde1 {[%emt 0:03:25]} Qd7 {[%emt 0:01:29]} 34. Qg2 {[%emt 0:01:01]} Qf7 {[%emt 0:04:01]} 35. Nh3 {[%emt 0:01:30]} Qf5 {[%emt 0:03:27]} 36. f4 {[%emt 0:00:49]} Kg8 {[%emt 0:02:35]} 37. Kh2 {[%emt 0:01:16]} Qd3 {[%emt 0:04:45]} 38. Rb2 {[%emt 0:00:25]} Rf8 {[%emt 0:01:17]} 39. Qc2 {[%emt 0:00:56]} Qxc2+ {[%emt 0:00:21]} 40. Rxc2 {[%emt 0:00:15]} Rb8 {[%emt 0:00:32]} 41. Ree2 {[%emt 0:00:01]} a4 {[%emt 0:00:04]} 42. Rb2 {[%emt 0:00:26]} Rb5 {[%emt 0:00:32]} 43. Ng5 {[%emt 0:00:25]} Bxg5 {[%emt 0:00:02]} 44. fxg5 {[%emt 0:01:03]} a3 {[%emt 0:00:07]} 45. Rxb5 {[%emt 0:00:01]} Nxb5 {[%emt 0:00:15]} 46. Re3 {[%emt 0:00:17]} Na7 {[%emt 0:00:02]} 47. Rf3 {[%emt 0:00:29]} Nb5 {[%emt 0:01:55]} 48. Kg2 {[%emt 0:00:26]} Kg7 {[%emt 0:00:30]} 49. Kf2 {[%emt 0:00:10]} Nc7 {[%emt 0:00:50]} 50. Ke2 {[%emt 0:00:05]} Ne8 {[%emt 0:00:16]} 51. Rf1 {[%emt 0:00:08]} Kg8 {[%emt 0:00:56]} 52. Rb1 {[%emt 0:00:12]} Ng7 {[%emt 0:00:28]} 53. Rb8+ {[%emt 0:00:08]} Kf7 {[%emt 0:00:01]} 54. Ra8 {[%emt 0:00:33]} Nf5 {[%emt 0:00:06]} 55. Kf3 {[%emt 0:00:29]} h4 {[%emt 0:00:03]} 56. g4 {[%emt 0:00:10]} Ng3 {[%emt 0:00:19]} 57. Rh8 {[%emt 0:00:23]} Ne4 {[%emt 0:00:08]} 58. Rxh4 {[%emt 0:00:34]} Nxc3 {[%emt 0:00:12]} 59. Rh2 {[%emt 0:00:22]} Ne4 {[%emt 0:00:30]} 60. Rh7+ {[%emt 0:00:12]} Ke8 {[%emt 0:02:30]} 61. Ke3 {[%emt 0:05:13]} Nc3 {[%emt 0:00:15]} 62. Rh2 {[%emt 0:01:13]} Kd7 {[%emt 0:00:43]} 63. Rh7+ {[%emt 0:01:25]} Ke8 {[%emt 0:01:18]} 64. Ra7 {[%emt 0:00:11]} Nxa2 {[%emt 0:00:00]} 65. Rxa3 {[%emt 0:01:24]} Nb4 {[%emt 0:00:42]} 66. Kd2 {[%emt 0:00:12]} Nd3 {[%emt 0:00:01]} 67. Kc3 {[%emt 0:00:54]} Ke7 {[%emt 0:00:04]} 68. Ra1 {[%emt 0:00:05]} Nf2 {[%emt 0:00:03]} 69. Rf1 {[%emt 0:00:30]} Ne4+ {[%emt 0:00:13]} 70. Kc2 {[%emt 0:05:05]} Ke8 {[%emt 0:00:57]} 71. Rh1 {[%emt 0:02:00]} Kf7 {[%emt 0:00:16]} 72. Rf1+ {[%emt 0:00:29]} 1/2-1/2

[Event "White Rook U14 Final 2019"]
[Site "Sochi"]
[Date "2019.06.06"]
[Round "3.26"]
[White "Soucek, Jan"]
[Black "Shmarov, Mikhail"]
[Result "1-0"]
[ECO "C01"]
[WhiteElo "1543"]
[BlackElo "1724"]
[Annotator "NA RC"]
[PlyCount "137"]
[EventDate "2019.06.02"]
[EventCountry "RUS"]
[SourceTitle "playchess.com"]
[Source "ChessBase"]
[SourceQuality "1"]
[TimeControl "5400+30"]

1. e4 {[%emt 0:00:00]} e6 {[%emt 0:00:00]} 2. d4 {[%emt 0:00:00]} d5 {[%emt 0:00:00]} 3. exd5 {[%emt 0:02:18]} exd5 {[%emt 0:00:00]} 4. c4 {[%emt 0:00:30]} Nf6 {[%emt 0:00:03]} 5. Nc3 {[%emt 0:00:08]} Bb4 {[%emt 0:01:45]} 6. Nf3 {[%emt 0:01:06]} O-O {[%emt 0:00:42]} 7. a3 {[%emt 0:02:01]} Bxc3+ {[%emt 0:01:41]} 8. bxc3 {[%emt 0:00:16]} Ne4 {[%emt 0:00:05]} 9. Bb2 {[%emt 0:02:22]} Re8 {[%emt 0:02:38]} 10. Be2 {[%emt 0:06:37]} Qe7 {[%emt 0:00:00]} 11. cxd5 {[%emt 0:18:22]} Bg4 {[%emt 0:04:47]} 12. Qd3 {[%emt 0:11:02]} Ng5 {[%emt 0:02:44]} 13. O-O-O {[%emt 0:10:47]} Ne4 {[%emt 0:06:45]} 14. Qe3 {[%emt 0:03:08]} Qd8 {[%emt 0:05:27]} 15. Ne5 {[%emt 0:04:38]} Bxe2 {[%emt 0:00:38]} 16. Qxe2 {[%emt 0:00:07]} Qg5+ {[%emt 0:00:15]} 17. Kb1 {[%emt 0:02:04]} Nd6 {[%emt 0:01:36]} 18. Qf3 {[%emt 0:04:10]} f6 {[%emt 0:00:41]} 19. h4 {[%emt 0:04:17]} Qh6 {[%emt 0:00:15]} 20. Bc1 {[%emt 0:00:27]} Qxc1+ {[%emt 0:03:10]} 21. Kxc1 {[%emt 0:01:39]} fxe5 {[%emt 0:00:15]} 22. dxe5 {[%emt 0:04:24]} Rxe5 {[%emt 0:00:52]} 23. Rhe1 {[%emt 0:02:22]} Nd7 {[%emt 0:00:42]} 24. Qg4 {[%emt 0:01:00]} Nf6 {[%emt 0:00:13]} 25. Qa4 {[%emt 0:02:00]} Re4 {[%emt 0:05:15]} 26. Rxe4 {[%emt 0:01:47]} Nfxe4 {[%emt 0:00:41]} 27. Qd4 {[%emt 0:01:07]} Rf8 {[%emt 0:01:16]} 28. f3 {[%emt 0:00:54]} Ng3 {[%emt 0:00:27]} 29. Kd2 {[%emt 0:01:11]} b6 {[%emt 0:01:37]} 30. Re1 {[%emt 0:01:18]} h5 {[%emt 0:00:21]} 31. c4 {[%emt 0:02:38]} Ngf5 {[%emt 0:00:29]} 32. Qd3 {[%emt 0:01:52]} a5 {[%emt 0:02:42]} 33. Kc3 {[%emt 0:02:31]} Rb8 {[%emt 0:01:45]} 34. Re5 {[%emt 0:01:31]} Rf8 {[%emt 0:01:03]} 35. Kb2 {[%emt 0:02:32]} a4 {[%emt 0:02:31]} 36. Kb1 {[%emt 0:01:50]} Rf7 {[%emt 0:02:59]} 37. Ka2 {[%emt 0:00:30]} Rf8 {[%emt 0:00:36]} 38. Qc2 {[%emt 0:00:31]} g6 {[%emt 0:03:40]} 39. Qxa4 {[%emt 0:01:41]} Rf7 {[%emt 0:00:00]} 40. Qc2 {[%emt 0:00:05]} Kg7 {[%emt 0:00:35]} 41. a4 {[%emt 0:01:07]} Nxh4 {[%emt 0:01:57]} 42. c5 {[%emt 0:00:53]} Ndf5 {[%emt 0:02:34]} 43. cxb6 {[%emt 0:00:42]} cxb6 {[%emt 0:00:31]} 44. Qb2 {[%emt 0:00:00]} Kh7 {[%emt 0:00:00]} 45. Qxb6 {[%emt 0:00:03]} Nxg2 {[%emt 0:01:05]} 46. Qg1 {[%emt 0:00:54]} Ngh4 {[%emt 0:00:06]} 47. Re6 {[%emt 0:00:15]} Ng7 {[%emt 0:01:01]} 48. Qg3 {[%emt 0:01:28]} Ngf5 {[%emt 0:00:00]} 49. Qg5 {[%emt 0:00:00]} Rg7 {[%emt 0:00:28]} 50. d6 {[%emt 0:00:40]} Nxf3 {[%emt 0:00:00]} 51. Qf4 {[%emt 0:00:17]} N3d4 {[%emt 0:00:00]} 52. Re8 {[%emt 0:00:40]} h4 {[%emt 0:00:51]} 53. a5 {[%emt 0:00:27]} Nb5 {[%emt 0:00:47]} 54. Re6 {[%emt 0:01:11]} Nc3+ {[%emt 0:00:09]} 55. Kb3 {[%emt 0:00:10]} Nb5 {[%emt 0:00:37]} 56. Qe5 {[%emt 0:00:24]} Nbd4+ {[%emt 0:00:20]} 57. Kc4 {[%emt 0:00:14]} Nxe6 {[%emt 0:00:39]} 58. Qxe6 {[%emt 0:00:04]} Ra7 {[%emt 0:01:56]} 59. d7 {[%emt 0:00:08]} Rc7+ {[%emt 0:00:13]} 60. Kd3 {[%emt 0:00:24]} Rc1 {[%emt 0:01:03]} 61. Kd2 {[%emt 0:00:41]} Rc2+ {[%emt 0:00:01]} 62. Kd1 {[%emt 0:00:30]} h3 {[%emt 0:00:46]} 63. d8=Q {[%emt 0:01:33]} Rg2 {[%emt 0:00:07]} 64. Qef6 {[%emt 0:00:46]} Rg1+ {[%emt 0:02:03]} 65. Kd2 {[%emt 0:00:15]} Rg2+ {[%emt 0:00:07]} 66. Kc3 {[%emt 0:00:16]} Rg3+ {[%emt 0:00:00]} 67. Kb4 {[%emt 0:00:25]} Rg4+ {[%emt 0:00:10]} 68. Kc5 {[%emt 0:00:19]} Ng7 {[%emt 0:00:00]} 69. Qxg7+ {[%emt 0:00:41]} 1-0

[Event "White Rook U14 Final 2019"]
[Site "Sochi"]
[Date "2019.06.06"]
[Round "3.27"]
[White "Lotcmanov, Aleksandr"]
[Black "Hrbek, Jachym"]
[Result "0-1"]
[ECO "C01"]
[WhiteElo "1326"]
[BlackElo "1394"]
[Annotator "NA RC"]
[PlyCount "98"]
[EventDate "2019.06.02"]
[EventCountry "RUS"]
[SourceTitle "playchess.com"]
[Source "ChessBase"]
[SourceQuality "1"]
[TimeControl "5400+30"]

1. e4 {[%emt 0:00:00]} e6 {[%emt 0:00:08]} 2. Nc3 {[%emt 0:00:03]} d5 {[%emt 0:00:45]} 3. exd5 {[%emt 0:00:24]} exd5 {[%emt 0:00:19]} 4. d4 {[%emt 0:00:03]} Nf6 {[%emt 0:01:16]} 5. Nf3 {[%emt 0:02:33]} Bd6 {[%emt 0:03:38]} 6. Bg5 {[%emt 0:03:40]} Nbd7 {[%emt 0:01:08]} 7. Nxd5 {[%emt 0:03:28]} O-O {[%emt 0:00:22]} 8. Nxf6+ {[%emt 0:03:38]} Nxf6 {[%emt 0:02:24]} 9. Be2 {[%emt 0:01:23]} b6 {[%emt 0:00:39]} 10. O-O {[%emt 0:09:20]} Bb7 {[%emt 0:00:14]} 11. Bd3 {[%emt 0:03:10]} Kh8 {[%emt 0:00:08]} 12. Ne5 {[%emt 0:02:11]} Bxe5 {[%emt 0:01:08]} 13. dxe5 {[%emt 0:03:42]} Qd5 {[%emt 0:00:12]} 14. f3 {[%emt 0:00:28]} Qxe5 {[%emt 0:00:49]} 15. Bxf6 {[%emt 0:00:30]} Qxf6 {[%emt 0:01:36]} 16. c3 {[%emt 0:01:22]} Qg5 {[%emt 0:00:54]} 17. Re1 {[%emt 0:00:22]} Rad8 {[%emt 0:05:31]} 18. Qe2 {[%emt 0:00:06]} Bc6 {[%emt 0:04:34]} 19. Kh1 {[%emt 0:11:27]} Rfe8 {[%emt 0:04:23]} 20. Qc2 {[%emt 0:00:46]} h5 {[%emt 0:03:25]} 21. Rad1 {[%emt 0:01:26]} h4 {[%emt 0:02:44]} 22. Rxe8+ {[%emt 0:25:04]} Rxe8 {[%emt 0:00:25]} 23. Rf1 {[%emt 0:00:34]} Qe5 {[%emt 0:10:20]} 24. Qf2 {[%emt 0:01:23]} g5 {[%emt 0:02:13]} 25. Be4 {[%emt 0:04:50]} Bb5 {[%emt 0:03:29]} 26. Rd1 {[%emt 0:00:37]} Qf4 {[%emt 0:00:58]} 27. Qd4+ {[%emt 0:04:38]} Kg8 {[%emt 0:02:13]} 28. c4 {[%emt 0:07:33]} Ba6 {[%emt 0:02:23]} 29. b3 {[%emt 0:06:20]} Bc8 {[%emt 0:10:03]} 30. Kg1 {[%emt 0:00:39]} f5 {[%emt 0:02:07]} 31. Bd5+ {[%emt 0:01:51]} Kh7 {[%emt 0:00:44]} 32. Qxf4 {[%emt 0:00:33]} gxf4 {[%emt 0:02:06]} 33. Kf2 {[%emt 0:00:11]} Re3 {[%emt 0:01:03]} 34. Rd4 {[%emt 0:01:13]} Rc3 {[%emt 0:00:48]} 35. Rd2 {[%emt 0:00:50]} Kg6 {[%emt 0:03:06]} 36. Ke2 {[%emt 0:00:48]} Re3+ {[%emt 0:00:29]} 37. Kd1 {[%emt 0:00:38]} Kf6 {[%emt 0:00:06]} 38. Re2 {[%emt 0:00:45]} Ke5 {[%emt 0:06:44]} 39. g3 {[%emt 0:00:31]} Rxe2 {[%emt 0:04:38]} 40. Kxe2 {[%emt 0:00:30]} fxg3 {[%emt 0:00:25]} 41. hxg3 {[%emt 0:00:21]} hxg3 {[%emt 0:01:02]} 42. Ke3 {[%emt 0:00:20]} f4+ {[%emt 0:00:40]} 43. Ke2 {[%emt 0:00:13]} Kd4 {[%emt 0:00:14]} 44. b4 {[%emt 0:00:43]} Bf5 {[%emt 0:00:36]} 45. Be4 {[%emt 0:00:26]} Bxe4 {[%emt 0:00:42]} 46. fxe4 {[%emt 0:00:19]} Kxe4 {[%emt 0:00:06]} 47. c5 {[%emt 0:00:10]} bxc5 {[%emt 0:00:05]} 48. bxc5 {[%emt 0:00:06]} f3+ {[%emt 0:00:04]} 49. Kf1 {[%emt 0:00:09]} Ke5 {[%emt 0:00:03]} 0-1

[Event "White Rook U14 Final 2019"]
[Site "Sochi"]
[Date "2019.06.06"]
[Round "3.29"]
[White "Balashov, Arseny"]
[Black "Lotnik, Vladislav"]
[Result "1-0"]
[ECO "A11"]
[WhiteElo "1990"]
[BlackElo "1490"]
[Annotator "NA RC"]
[PlyCount "73"]
[EventDate "2019.06.02"]
[EventCountry "RUS"]
[SourceTitle "playchess.com"]
[Source "ChessBase"]
[SourceQuality "1"]
[TimeControl "5400+30"]

1. Nf3 {[%emt 0:00:00]} d5 {[%emt 0:00:09]} 2. e3 {[%emt 0:00:12]} c6 {[%emt 0:00:22]} 3. c4 {[%emt 0:00:16]} e6 {[%emt 0:00:17]} 4. b3 {[%emt 0:00:02]} f5 {[%emt 0:00:09]} 5. Bb2 {[%emt 0:00:18]} Nf6 {[%emt 0:00:09]} 6. Be2 {[%emt 0:01:11]} Bd6 {[%emt 0:00:34]} 7. Ne5 {[%emt 0:00:03]} O-O {[%emt 0:00:37]} 8. O-O {[%emt 0:00:23]} Nbd7 {[%emt 0:02:32]} 9. f4 {[%emt 0:00:17]} Qc7 {[%emt 0:02:36]} 10. d4 {[%emt 0:10:06]} Ne4 {[%emt 0:00:30]} 11. Nd2 {[%emt 0:05:01]} Ndf6 {[%emt 0:00:48]} 12. Rc1 {[%emt 0:05:42]} Qa5 {[%emt 0:01:43]} 13. Nxe4 {[%emt 0:01:18]} Nxe4 {[%emt 0:00:08]} 14. Qc2 {[%emt 0:04:51]} Bxe5 {[%emt 0:08:47]} 15. dxe5 {[%emt 0:00:53]} Bd7 {[%emt 0:02:22]} 16. Bf3 {[%emt 0:11:34]} Rac8 {[%emt 0:03:46]} 17. Bxe4 {[%emt 0:15:39]} fxe4 {[%emt 0:00:09]} 18. g4 {[%emt 0:03:03]} Qc5 {[%emt 0:01:41]} 19. Bd4 {[%emt 0:01:59]} Qa3 {[%emt 0:04:51]} 20. Qg2 {[%emt 0:09:20]} b5 {[%emt 0:02:46]} 21. f5 {[%emt 0:01:09]} bxc4 {[%emt 0:04:09]} 22. bxc4 {[%emt 0:02:20]} Qe7 {[%emt 0:00:14]} 23. f6 {[%emt 0:12:52]} gxf6 {[%emt 0:01:31]} 24. exf6 {[%emt 0:04:59]} Qf7 {[%emt 0:00:02]} 25. Bxa7 {[%emt 0:00:25]} Qg6 {[%emt 0:00:41]} 26. g5 {[%emt 0:04:35]} h6 {[%emt 0:02:30]} 27. gxh6 {[%emt 0:01:09]} Kh7 {[%emt 0:00:59]} 28. Qxg6+ {[%emt 0:00:47]} Kxg6 {[%emt 0:05:44]} 29. Bd4 {[%emt 0:00:02]} c5 {[%emt 0:00:00]} 30. Be5 {[%emt 0:00:36]} dxc4 {[%emt 0:00:10]} 31. f7 {[%emt 0:00:24]} Kxh6 {[%emt 0:00:23]} 32. Rf6+ {[%emt 0:01:31]} Kg5 {[%emt 0:01:12]} 33. Rc2 {[%emt 0:02:33]} Rc6 {[%emt 0:00:46]} 34. Rg2+ {[%emt 0:00:51]} Kh5 {[%emt 0:00:02]} 35. Rfg6 {[%emt 0:00:07]} Rb6 {[%emt 0:00:37]} 36. R2g5+ {[%emt 0:01:02]} Kh4 {[%emt 0:00:01]} 37. Bg3+ {[%emt 0:00:13]} 1-0

[Event "White Rook U14 Final 2019"]
[Site "Sochi"]
[Date "2019.06.06"]
[Round "3.30"]
[White "Kostornichenko, Yana"]
[Black "Mikheev, Arsenii E."]
[Result "1-0"]
[ECO "B43"]
[WhiteElo "1706"]
[BlackElo "1500"]
[Annotator "NA RC"]
[PlyCount "109"]
[EventDate "2019.06.02"]
[EventCountry "RUS"]
[SourceTitle "playchess.com"]
[Source "ChessBase"]
[SourceQuality "1"]
[TimeControl "5400+30"]

1. e4 {[%emt 0:00:00]} c5 {[%emt 0:00:09]} 2. Nf3 {[%emt 0:00:08]} e6 {[%emt 0:00:12]} 3. d4 {[%emt 0:00:06]} cxd4 {[%emt 0:00:08]} 4. Nxd4 {[%emt 0:00:05]} a6 {[%emt 0:00:08]} 5. Nc3 {[%emt 0:00:06]} Qc7 {[%emt 0:00:08]} 6. g3 {[%emt 0:00:06]} Bb4 {[%emt 0:00:18]} 7. Bd2 {[%emt 0:00:14]} Nc6 {[%emt 0:00:26]} 8. Nb3 {[%emt 0:00:37]} Nf6 {[%emt 0:00:11]} 9. Bg2 {[%emt 0:00:09]} d6 {[%emt 0:00:28]} 10. O-O {[%emt 0:00:59]} O-O {[%emt 0:00:09]} 11. f4 {[%emt 0:03:54]} e5 {[%emt 0:03:08]} 12. f5 {[%emt 0:01:35]} Na5 {[%emt 0:00:21]} 13. Nxa5 {[%emt 0:00:11]} Bxa5 {[%emt 0:11:22]} 14. Kh1 {[%emt 0:00:11]} b5 {[%emt 0:02:46]} 15. Nd5 {[%emt 0:01:56]} Qd8 {[%emt 0:05:54]} 16. Bxa5 {[%emt 0:03:39]} Qxa5 {[%emt 0:01:19]} 17. Nxf6+ {[%emt 0:00:11]} gxf6 {[%emt 0:00:13]} 18. Qxd6 {[%emt 0:00:09]} Qd8 {[%emt 0:00:32]} 19. Rfd1 {[%emt 0:00:14]} Bb7 {[%emt 0:01:39]} 20. Rd3 {[%emt 0:00:23]} Kg7 {[%emt 0:16:53]} 21. Rad1 {[%emt 0:00:15]} Qa5 {[%emt 0:04:27]} 22. Qe7 {[%emt 0:00:27]} Rab8 {[%emt 0:00:55]} 23. Rd6 {[%emt 0:03:40]} Qxa2 {[%emt 0:00:52]} 24. Qxf6+ {[%emt 0:01:06]} Kg8 {[%emt 0:00:12]} 25. Qxe5 {[%emt 0:00:05]} Qc4 {[%emt 0:03:29]} 26. c3 {[%emt 0:09:58]} Rbe8 {[%emt 0:11:40]} 27. Qd4 {[%emt 0:03:38]} Qe2 {[%emt 0:02:20]} 28. Qd2 {[%emt 0:00:08]} Qxd2 {[%emt 0:01:55]} 29. R1xd2 {[%emt 0:00:40]} Bxe4 {[%emt 0:00:23]} 30. Bxe4 {[%emt 0:00:11]} Rxe4 {[%emt 0:00:05]} 31. Rxa6 {[%emt 0:00:06]} Re5 {[%emt 0:00:29]} 32. Rf2 {[%emt 0:00:05]} Rfe8 {[%emt 0:01:37]} 33. Ra5 {[%emt 0:00:27]} Kg7 {[%emt 0:01:50]} 34. Kg2 {[%emt 0:00:13]} Kf6 {[%emt 0:01:15]} 35. h3 {[%emt 0:00:08]} Rb8 {[%emt 0:01:30]} 36. h4 {[%emt 0:00:16]} Rxf5 {[%emt 0:00:37]} 37. Rxf5+ {[%emt 0:00:32]} Kxf5 {[%emt 0:00:09]} 38. c4 {[%emt 0:00:05]} Ke4 {[%emt 0:00:08]} 39. Rxb5 {[%emt 0:00:06]} Rc8 {[%emt 0:00:16]} 40. b3 {[%emt 0:00:06]} Kd4 {[%emt 0:00:14]} 41. Rh5 {[%emt 0:00:11]} Kc3 {[%emt 0:00:41]} 42. Rb5 {[%emt 0:00:57]} Rc7 {[%emt 0:00:50]} 43. Kf3 {[%emt 0:00:07]} Rd7 {[%emt 0:00:14]} 44. Kf4 {[%emt 0:00:09]} Re7 {[%emt 0:01:06]} 45. Kf5 {[%emt 0:00:13]} Re3 {[%emt 0:00:28]} 46. g4 {[%emt 0:00:17]} Rf3+ {[%emt 0:01:30]} 47. Ke4 {[%emt 0:00:16]} Rf6 {[%emt 0:00:17]} 48. c5 {[%emt 0:00:17]} Re6+ {[%emt 0:00:39]} 49. Kd5 {[%emt 0:00:16]} Rg6 {[%emt 0:00:05]} 50. c6 {[%emt 0:00:40]} Rxg4 {[%emt 0:01:50]} 51. c7 {[%emt 0:00:17]} Rd4+ {[%emt 0:00:08]} 52. Ke5 {[%emt 0:00:02]} f6+ {[%emt 0:00:09]} 53. Kxf6 {[%emt 0:00:28]} Rd6+ {[%emt 0:00:36]} 54. Ke7 {[%emt 0:00:03]} Rc6 {[%emt 0:00:07]} 55. Kd7 {[%emt 0:00:03]} 1-0

[Event "White Rook U14 Final 2019"]
[Site "Sochi"]
[Date "2019.06.06"]
[Round "3.31"]
[White "Klimovskikh, Nikita"]
[Black "Abubekerov, Iliya"]
[Result "0-1"]
[ECO "C01"]
[WhiteElo "1333"]
[BlackElo "1199"]
[Annotator "NA RC"]
[PlyCount "106"]
[EventDate "2019.06.02"]
[EventCountry "RUS"]
[SourceTitle "playchess.com"]
[Source "ChessBase"]
[SourceQuality "1"]
[TimeControl "5400+30"]

1. e4 {[%emt 0:00:00]} e6 {[%emt 0:00:00]} 2. d4 {[%emt 0:00:00]} d5 {[%emt 0:00:00]} 3. exd5 {[%emt 0:00:00]} exd5 {[%emt 0:00:00]} 4. Bd3 {[%emt 0:00:00]} Bd6 {[%emt 0:00:00]} 5. c3 {[%emt 0:00:38]} c6 {[%emt 0:00:00]} 6. Nf3 {[%emt 0:01:10]} Nf6 {[%emt 0:00:00]} 7. Bg5 {[%emt 0:00:11]} O-O {[%emt 0:00:00]} 8. O-O {[%emt 0:00:06]} Bg4 {[%emt 0:00:05]} 9. Nbd2 {[%emt 0:00:05]} Nbd7 {[%emt 0:00:03]} 10. Qc2 {[%emt 0:00:22]} h6 {[%emt 0:00:17]} 11. Bh4 {[%emt 0:00:09]} Qc7 {[%emt 0:00:49]} 12. Bg3 {[%emt 0:12:18]} Bxg3 {[%emt 0:00:32]} 13. hxg3 {[%emt 0:00:14]} Rfe8 {[%emt 0:00:20]} 14. Rfe1 {[%emt 0:00:15]} Rxe1+ {[%emt 0:02:56]} 15. Rxe1 {[%emt 0:00:14]} Re8 {[%emt 0:00:03]} 16. Rxe8+ {[%emt 0:01:59]} Nxe8 {[%emt 0:00:31]} 17. Nf1 {[%emt 0:03:57]} Nef6 {[%emt 0:01:21]} 18. Ne3 {[%emt 0:00:21]} Bxf3 {[%emt 0:06:05]} 19. gxf3 {[%emt 0:00:03]} c5 {[%emt 0:00:50]} 20. dxc5 {[%emt 0:00:09]} Qxc5 {[%emt 0:02:23]} 21. Bf5 {[%emt 0:00:42]} Ne5 {[%emt 0:03:08]} 22. f4 {[%emt 0:00:08]} Nc4 {[%emt 0:15:13]} 23. Nxc4 {[%emt 0:02:14]} dxc4 {[%emt 0:00:34]} 24. Bh3 {[%emt 0:00:37]} Qd6 {[%emt 0:03:38]} 25. Qf5 {[%emt 0:01:40]} Qd1+ {[%emt 0:06:42]} 26. Kg2 {[%emt 0:01:54]} Qd5+ {[%emt 0:02:56]} 27. Qxd5 {[%emt 0:00:31]} Nxd5 {[%emt 0:00:42]} 28. Kf3 {[%emt 0:00:46]} Nb6 {[%emt 0:00:20]} 29. Bf1 {[%emt 0:00:47]} Na4 {[%emt 0:00:38]} 30. Bxc4 {[%emt 0:00:32]} Nxb2 {[%emt 0:00:09]} 31. Bb3 {[%emt 0:00:06]} Nd3 {[%emt 0:01:03]} 32. Ke3 {[%emt 0:00:15]} Nc5 {[%emt 0:00:28]} 33. Kd4 {[%emt 0:00:09]} b6 {[%emt 0:00:56]} 34. Kd5 {[%emt 0:00:15]} Kf8 {[%emt 0:05:20]} 35. Kc6 {[%emt 0:06:30]} f6 {[%emt 0:00:37]} 36. Kc7 {[%emt 0:00:37]} h5 {[%emt 0:01:33]} 37. Kb8 {[%emt 0:02:09]} Nxb3 {[%emt 0:01:22]} 38. axb3 {[%emt 0:00:08]} g5 {[%emt 0:00:21]} 39. Kxa7 {[%emt 0:00:04]} h4 {[%emt 0:01:08]} 40. fxg5 {[%emt 0:01:50]} fxg5 {[%emt 0:00:42]} 41. gxh4 {[%emt 0:01:01]} gxh4 {[%emt 0:00:06]} 42. Kxb6 {[%emt 0:00:05]} h3 {[%emt 0:00:06]} 43. c4 {[%emt 0:00:05]} h2 {[%emt 0:00:23]} 44. c5 {[%emt 0:00:03]} h1=Q {[%emt 0:04:28]} 45. b4 {[%emt 0:00:16]} Qa8 {[%emt 0:00:16]} 46. c6 {[%emt 0:00:02]} Ke7 {[%emt 0:00:18]} 47. Kc5 {[%emt 0:00:05]} Qa7+ {[%emt 0:03:22]} 48. Kb5 {[%emt 0:00:42]} Kd6 {[%emt 0:00:28]} 49. f4 {[%emt 0:00:07]} Qa8 {[%emt 0:01:29]} 50. c7 {[%emt 0:00:16]} Kxc7 {[%emt 0:00:31]} 51. f5 {[%emt 0:00:08]} Qd5+ {[%emt 0:00:03]} 52. Ka4 {[%emt 0:00:19]} Qxf5 {[%emt 0:00:38]} 53. b5 {[%emt 0:00:08]} Qb1 {[%emt 0:00:09]} 0-1